Cogmind - Beta 9.6 @@@ ROGUE MODE // 2020.08.27 @ 20:27:11 Player: Cracklepappy Result: Destroyed by D-53 Grenadier with Mini Grenade Launcher Performance ------------- Evolutions (0) 0 Regions Visited (2) 400 Robots Destroyed (26) 130 Value Destroyed (632) 632 Prototype IDs (4) 80 Alien Tech Used (0) 0 Bonus (0) 0 TOTAL SCORE: 1242 Bonus ------- None Cogmind --------- Core Integrity 0/250 Matter 271/300 Energy 84/100 System Corruption 0% Temperature Cool (0) Movement Rolling (110) Ox1 Location -10/Mines Parts ------- > --- POWER (1) -------- (None) > --- PROPULSION (2) --- Compact Wheel > --- UTILITY (2) ------ Small Storage Unit Large Storage Unit > --- WEAPON (2) ------- (None) > --- INVENTORY (12) --- Small Storage Unit Medium Storage Unit Medium Storage Unit Large Storage Unit Improved Terrain Scanner Small Laser Particle Gun Shotgun Grenade Launcher Rocket Launcher Mining Laser Peak State ------------ > --- POWER ------------ Light Nuclear Core > --- PROPULSION ------- Light Treads Light Treads > --- UTILITY ---------- Small Storage Unit Large Storage Unit > --- WEAPON ----------- Shotgun Shotgun > --- INVENTORY -------- Compact Wheel Small Storage Unit Medium Storage Unit Medium Storage Unit Large Storage Unit Improved Terrain Scanner Small Laser Particle Gun Shotgun Grenade Launcher Mining Laser [Rating: 12] Favorites ----------- Power Ion Engine Engine Ion Engine Power Core Light Nuclear Core Propulsion Light Treads Treads Light Treads Wheel Wheel Utility Small Storage Unit Storage Small Storage Unit Weapon Shotgun Energy Gun Small Laser Ballistic Gun Shotgun Launcher Grenade Launcher Special Weapon Mining Laser Build | -11 -10 -10 ------- Run | Scr Mat Min Slots Evolved . | . . . Power . | . . . Propulsion . | . . . Utility . | . . . Weapon . | . . . Parts Attached 26 | 9 12 5 Power 2 | 1 . 1 Engine 1 | 1 . . Core 1 | . . 1 Reactor . | . . . Propulsion 5 | 2 2 1 Treads 2 | . 2 . Leg . | . . . Wheel 3 | 2 . 1 Hover . | . . . Flight . | . . . Utility 3 | 2 1 . Device . | . . . Storage 3 | 2 1 . Processor . | . . . Hackware . | . . . Protection . | . . . Artifact . | . . . Weapon 16 | 4 9 3 Energy Gun 1 | 1 . . Energy Cannon . | . . . Ballistic Gun 11 | 3 6 2 Ballistic Cannon . | . . . Launcher 2 | . 2 . Special Weapon 2 | . 1 1 Impact Weapon . | . . . Slashing Weapon . | . . . Piercing Weapon . | . . . Special Melee Weapon . | . . . Unidentified Prototypes . | . . . Parts Lost 8 | . 2 6 Power 2 | . . 2 Propulsion 4 | . 2 2 Utility . | . . . Weapon 2 | . . 2 Highest Loss Streak 5 | . 2 5 Average Slot Usage (%) 99 | . 99 99 Engine 6 | . 14 . Core 7 | . . 13 Treads 17 | . 5 27 Wheel 10 | . 21 . Storage 28 | . 28 28 Ballistic Gun 26 | . 25 27 Naked Turns . | . . . Heaviest Build 31 | 16 31 31 Greatest Support 40 | 20 40 40 Greatest Overweight (x) 1 | . 1 1 Average Overweight (x) . | . . . Largest Inventory Capacity 12 | 8 12 12 Average Capacity 10 | 6 8 12 Most Carried 12 | 8 12 12 Average Carried 10 | 3 8 11 Final Capacity 12 | 8 12 12 Final Carried 12 | 8 12 11 Class Distribution -------------------- 100% | Mutant Dominant Class ---------------- Mutant | -10/Materials Mutant | -10/Mines Resources | -11 -10 -10 ----------- Run | Scr Mat Min Matter Collected 811 | 265 330 216 Remotely . | . . . Salvage Created 723 | 110 442 171 Parts 54 | 12 37 5 Haulers Intercepted . | . . . Recyclers Shooed . | . . . Parts Field Recycled . | . . . Retrieved Matter . | . . . Parts Self-Destructed . | . . . Prevented . | . . . Kills | -11 -10 -10 ------- Run | Scr Mat Min Combat Hostiles Destroyed 16 | . 12 4 Guns 13 | . 9 4 AOE 3 | . 3 . Classes Destroyed 7 | 2 5 . Worker 3 | . 3 . Tunneler 3 | 3 . . Recycler 1 | 1 . . Operator 1 | . 1 . Watcher 2 | . 2 . Swarmer 3 | . 3 . Grunt 13 | . 9 4 Best Kill Streak 4 | 4 4 2 Combat Bots Only 3 | . 3 2 Max Kills in Single Turn 3 | 1 3 1 Gunslinging . | . . . Exploded 3 | . 3 . Melee . | . . . Uniques/NPCs Destroyed . | . . . Combat | -11 -10 -10 -------- Run | Scr Mat Min Damage Taken 1277 | . 562 715 Core 255 | . 119 136 Absorbed by Shields . | . . . Core Remaining (%) 100 | 100 . . Volleys Fired 67 | 7 46 14 Largest 2 | 2 2 2 Hottest 100 | 40 100 100 Shots Fired 119 | 14 78 27 Gun 104 | 14 64 26 Cannon . | . . . Launcher 10 | . 10 . Special 5 | . 4 1 Kinetic 104 | 14 64 26 Thermal 5 | . 4 1 Explosive 10 | . 10 . Electromagnetic . | . . . Robot Hit Streak 8 | 4 8 8 Robot Miss Streak 6 | 2 5 6 Penetration Max . | . . . Secondary Targets 2 | . 2 . Max Gunslinging Chain 1 | . 1 . Shots Hit Robots 76 | 8 51 17 Core Hits 49 | 5 31 13 Critical Hits 1 | . 1 . Critical Kills . | . . . Critical Parts Destroyed 1 | . 1 . Melee Attacks . | . . . Impact . | . . . Slashing . | . . . Piercing . | . . . Sneak Attacks . | . . . Combat Hostiles . | . . . Follow-up Attacks . | . . . Damage Inflicted 1400 | 82 1021 297 Guns 942 | 82 563 297 Cannons . | . . . Explosions 458 | . 458 . Melee . | . . . Ramming . | . . . Kinetic 942 | 82 563 297 Thermal . | . . . Explosive 458 | . 458 . Electromagnetic . | . . . Impact . | . . . Slashing . | . . . Piercing . | . . . Highest Corruption . | . . . Average Corruption . | . . . Corruption Purged . | . . . Overload Shots . | . . . Overflow Damage 5 | . 5 . Projectiles . | . . . Explosions 5 | . 5 . Melee . | . . . Knockbacks . | . . . Impact . | . . . Kinetic . | . . . Secondary . | . . . Self-Inflicted Damage 70 | . 70 . Shots 4 | . 4 . Rammed . | . . . Targets Rammed . | . . . Kicked . | . . . Crushed . | . . . Highest Temperature 28 | . 20 28 Average Temperature 7 | . 7 8 Received Heat Transfer 312 | . 240 72 Siege Activations . | . . . Robots Corrupted . | . . . Combat Hostiles . | . . . Parts Fried . | . . . Impact Corruptions . | . . . Robots Melted . | . . . Combat Hostiles . | . . . Parts Melted . | . . . Heat Transferred . | . . . Parts Sabotaged . | . . . Parts Stolen . | . . . Parts Stripped . | . . . Power Chain Reactions . | . . . Missiles Intercepted . | . . . Alert | -11 -10 -10 ------- Run | Scr Mat Min Peak Influence 350 | 20 350 153 Average Influence 102 | 6 153 68 Maximum Alert Level 1 | . 1 . Low Security (%) 88 | 100 73 100 Level 1 11 | . 26 . Level 2 . | . . . Level 3 . | . . . Level 4 . | . . . Level 5 . | . . . High Security . | . . . Max Security . | . . . Squads Dispatched 4 | . 4 . Investigation 2 | . 2 . Extermination . | . . . Reinforcement 2 | . 2 . Assault . | . . . Garrison . | . . . Intercept . | . . . Construction Impeded . | . . . Haulers Reinforced . | . . . Stealth | -11 -10 -10 --------- Run | Scr Mat Min Distress Signals . | . . . Communications Jammed . | . . . Distress Signals . | . . . Times Spotted 32 | . 22 10 Peak Tracking Total 7 | . 3 7 Tactical Retreats 2 | . 1 1 Traps | -11 -10 -10 ------- Run | Scr Mat Min Traps Triggered 1 | . 1 . Indirectly . | . . . Trap Hack Attempts . | . . . Triggered . | . . . Disarmed . | . . . Reprogrammed . | . . . Reused . | . . . Traps Extracted . | . . . Installed . | . . . Triggered . | . . . Machines | -11 -10 -10 ---------- Run | Scr Mat Min Machines Disabled 3 | . 3 . Max in Single Turn 1 | . 1 . Machines Sabotaged . | . . . Garrisons Compromised . | . . . Overloaded Fab Kills . | . . . Fab Network Shutdowns . | . . . Hacking | -11 -10 -10 --------- Run | Scr Mat Min Machines Accessed 7 | . 7 . Terminals 5 | . 5 . Fabricators . | . . . Repair Stations . | . . . Recycling Units 2 | . 2 . Scanalyzers . | . . . Garrison Access . | . . . Total Hacks 18 | . 18 . Successful 11 | . 11 . Failed 7 | . 7 . Catastrophic 2 | . 2 . Database Lockouts . | . . . Manual 11 | . 11 . Terminals 16 | . 16 . Fabricators . | . . . Repair Stations . | . . . Recycling Units 2 | . 2 . Scanalyzers . | . . . Garrison Access . | . . . Terminal Hacks 9 | . 9 . Part Schematic 1 | . 1 . Prototype ID Bank 2 | . 2 . Unreport Threat 1 | . 1 . Locate Traps 3 | . 3 . Zone Layout 2 | . 2 . Fabricator Hacks . | . . . Repair Station Hacks . | . . . Recycling Unit Hacks . | . . . Scanalyzer . | . . . Garrison Access Hacks . | . . . Unauthorized Hacks 2 | . 2 . Terminals . | . . . Fabricators . | . . . Repair Stations . | . . . Recycling Units 2 | . 2 . Tunnel 2 | . 2 . Scanalyzers . | . . . Garrison Access . | . . . Data Cores Recovered . | . . . Used . | . . . Hacking Detections 5 | . 5 . Full Trace Events . | . . . Feedback Events . | . . . Feedback Blocked . | . . . Robot Schematics Acquired . | . . . Robots Built . | . . . Matter . | . . . Time . | . . . Total Robot Build Rating . | . . . Part Schematics Acquired 1 | . 1 . Parts Built . | . . . Matter . | . . . Time . | . . . Total Part Build Rating . | . . . Parts Repaired . | . . . Time . | . . . Parts Recycled . | . . . Recycled Matter . | . . . Retrieved Matter . | . . . Retrieved Components . | . . . Parts Scanalyzed . | . . . Part Schematics Acquired . | . . . Parts Damaged . | . . . Bothacking | -11 -10 -10 ------------ Run | Scr Mat Min Used RIF Installer . | . . . Robots Hacked . | . . . Non-combat . | . . . Combat . | . . . Robot Hacks Applied . | . . . Relay Couplers Released . | . . . Robots Rewired . | . . . Allies Hacked . | . . . Hacks Repelled . | . . . Allies | -11 -10 -10 -------- Run | Scr Mat Min Total Allies 3 | . . 3 Largest Group 3 | . . 3 Highest-Rated Group 40 | . . 40 Highest-Rated Ally 16 | . . 16 Total Orders . | . . . Ally Attacks 18 | . . 18 Total Damage 155 | . . 155 Kills 3 | . . 3 Allies Corrupted . | . . . Allies Melted . | . . . Intel | -11 -10 -10 ------- Run | Scr Mat Min Robot Analysis Total . | . . . Derelict Logs Recovered 2 | . . 2 Drone Launches . | . . . Drone Recoveries . | . . . Exploration | -11 -10 -10 ------------- Run | Scr Mat Min Turns Passed 1654 | 91 724 839 Spaces Moved 1112 | 64 564 484 Core 1 | 1 . . Treads 563 | . 80 483 Legs . | . . . Wheels 548 | 63 484 1 Hover . | . . . Flight . | . . . Fastest Speed 50 | 50 80 110 Average Speed 120 | 79 91 159 Slowest Speed 160 | 80 160 160 Overloaded Moves . | . . . Propulsion Burnouts . | . . . Robots Hopped . | . . . Cave-ins Triggered . | . . . Exploration Rate (%) 58 | 3 84 87 Regions Visited 2 Branch Regions 1 Pre-discovered Areas 2 | . 2 . Known Exits Taken . | . . . Unknown Exits Taken 2 | 1 1 . Scrap Searched 1 | . . 1 Spaces Dug 4 | . 3 1 Terrain Destroyed 69 | . 68 1 Melee . | . . . Projectile 5 | . 4 1 AOE 64 | . 64 . Actions | -11 -10 -10 --------- Run | Scr Mat Min Total 1296 | 87 689 520 Wait 64 | . 50 14 Move 1110 | 63 563 484 Hop . | . . . Pick Up 20 | 8 10 2 Fast Attach 8 | 6 2 . Attach 5 | 1 2 2 Detach . | . . . Swap 13 | 2 8 3 Drop 9 | . 8 1 Fire 67 | 7 46 14 Melee . | . . . Ram . | . . . Kick . | . . . Crush . | . . . Escape Stasis . | . . . Rewire . | . . . Trap . | . . . Miscellaneous . | . . . Route ------- -11/Scrapyard -10/Materials (discovered 3 exits: [*Mat x2] / [*Min]) -10/Mines (discovered 2 exits: [*Mat x2]) History --------- Turn | Location | Event 16 | -11/Scrapyard | Discovered new exit (range 16) 92 | -11/Scrapyard | Entered Materials 280 | -10/Materials | Discovered new exit (range 16) 300 | -10/Materials | Build established: Mutant 456 | -10/Materials | Discovered new exit (range 21) 736 | -10/Materials | Discovered new exit (range 13) 816 | -10/Materials | Entered Mines 836 | -10/Mines | Core integrity fell below 50% 854 | -10/Mines | Discovered new exit (range 13) 903 | -10/Mines | Learned Materials terminal intel 1064 | -10/Mines | Received a Rocket Launcher from a helpful Derelict 1128 | -10/Mines | Discovered new exit (range 12) 1213 | -10/Mines | Learned Materials interactive machine intel 1247 | -10/Mines | Assisted by bots powering up and referring to "LRC-V3" 1390 | -10/Mines | Assembled infested the area 1395 | -10/Mines | Assisted by a Guerilla fighting off Assembled 1650 | -10/Mines | Core integrity fell below 20% 1655 | -10/Mines | Destroyed by D-53 Grenadier with Mini Grenade Launcher Last Messages --------------- 01192_ K-01 Serf cleans the Seismic Survey Station. 01198_ K-01 Serf collects debris. 01213_ Acquired derelict log, extracted data. Data stored: Materials interactive machine intel. 01222_ K-01 Serf collects debris. 01247_ Trooper 1a: "Hello LRC-V3. What is your command?" 01247_ Mercenary 1a: "Hello LRC-V3. What is your command?" 01247_ Trooper 1b: "Hello LRC-V3. What is your command?" 01390_ ALERT: Infestation in the mines, dispatching Demolisher response squad. 01395_ A derelict emerges from the shadows: "You need to get out of here! I've been tracking a group of Assembled to figure out where they're coming from, and they're closing on this area, come on!" 01612_ Acquired 26 matter. 01643_ The unstable cave ceiling collapses. 01643_ Seismic Survey Station disabled. 01647_ Lgt. Treads destroyed. 01649_ Lgt. Nuclear Core destroyed. 01651_ Shotgun destroyed. 01653_ Lgt. Treads destroyed. Map ----- +----------------------------------------------------+ | | | ?????????????????????????????????????????????????? | | ?????????????????????????????????????????????????? | | ?????????????????????????????????????????????????? | | ???????????????#######???????????????????????????? | | ???????????????# #????????????????????????#### | | ???????????????# """ #???????????????????????## | | ???????????????# """ #??????????????????????## | | ???????????????# """ #?????????????????????## | | ???????????????# #?????????????????????# | | ???????????????# #?????????????????????# | | ???????????????# ############?????????## ### | | ???????????????# #??####?### ### | | ???????????????# < ########## #?## ### ## | | ???????????????# #????##### ### # | | ???????????????#######????#%![ | | ?????######???????????????#! | | ????## #???????????????# ##### | | ##### ##???????????????# #???## ### | | ##?????########???# #????####?## ## | | #??????# # ##??# #??????????### #### | | ######## #### ###??????????# #??## | | ## # ##????###### #???## | | ?## dd ##???# #????# | | ??## ####### # #???# #????? | | ???####!#?##??# ### @ #???# ######????? | | ??????#%## ##?# ### ##???# #?????????? | | ?????##! #?# #?# #????# #?????????? | | ?????# #?# #?# ##????# #?????????? | | ###### ##?# #?# ######??# #?????????? | | ##??# #?## #### ##?# #?????????# | | ### ######??## ##?## ##?# ### #?????????# | | #?# ###????## ##?#######??# #??######## | | #?# ##???# ##?????????# #### ## | | ## ##??# ######????## | | #??## ## ####### | | ######### #### | | #???## ##??## | | #????## ######### # #????## | | ## #???????#### #?????#### | | # #?? #????##???# #????????## | | ?# #?######### #??## ## #?????????## | | ??##### #???????# #??# ###???????## | | ???????# #??????# #??# #??????## | | ???????? #?????## ##?## #??????# | | ?????????%* ??????### ##?## ##??????## | | ?????????? ????????####?## ##????????## | | ??????????????????????????# ##??????????? | | ??????????????????????????# #???????????? | | ??????????????????????????## #???????????? | +----------------------------------------------------+ Best States ------------- Heat Dissipation 25 Energy Generation 14 Energy Capacity 250 Matter Stores 300 Matter Capacity 300 Sight Range 16 Terrain Scan Density 10 Evasion (%) 44 Recoil Reduction 2 Item Schematics ----------------- Hcp. Storage Unit | -10/Materials | Hacked Robot Schematics ------------------ None Fabricated ------------ Nothing Alien Tech Used ----------------- None Achievements -------------- None Challenges ------------ None Game ------ Seed NuclearPowerEdition Manual? 0 Play Time 00:16:22 Cumulative 139.9 hours Start 2020.08.27 @ 20:14:36 End 2020.08.27 @ 20:27:11 Sessions 1 Manual Loads 0 Difficulty Rogue Special Mode None Game No. 173 Rogue 173 Adventurer 0 Explorer 0 Win Type - Total 2 Types 2/0/0/0/0/0/0 Lore% 51 Gallery% 68 Achievement% 49 Wizard Run 0 Options --------- ASCII 0 Keyboard 0 Movement Numpad Keybinds 0 Fullscreen 2 Font 24/Smallcaps Map View 76x50 Tactical HUD 1 Map Filters NONE Filters NONE Steam 1 RUN: 12627098-d787-458b-ac64-8084dc1464c0